Cogmind - Beta 13 @@@ ROGUE MODE // 2024.04.29 @ 16:45:40 Player: DGSTER Result: Destroyed by H-77 Assassin with Coil Gun Performance ------------- Evolutions (6) 3000 Regions Visited (10) 2000 Robots Destroyed (72) 360 Value Destroyed (2937) 2937 Prototype IDs (16) 320 Alien Tech Used (0) 0 Bonus (2057) 2057 TOTAL SCORE: 10674 Bonus ------- High Alert Combat Kills 8 Met Warlord at Base 500 MAIN.C Attacked Warlord 500 Warlord Defense Kills 1174 Friendly Fire -125 Cogmind --------- Core Integrity 0/1150 Matter 261/300 Energy 99/100 System Corruption 4% Temperature Cool (0) Movement Core (50) Location -3/Proximity Caves Parts ------- > --- POWER (1) -------- (None) > --- PROPULSION (4) --- (None) > --- UTILITY (10) ----- Experimental Coolant Injector Enhanced Optical Array Advanced Signal Interpreter Experimental Armor Integrity Analyzer > --- WEAPON (4) ------- (None) > --- INVENTORY (5) ---- Advanced Weapon Cycler Advanced Transmission Jammer Advanced System Shield Peak State ------------ > --- POWER ------------ Light Antimatter Reactor > --- PROPULSION ------- Flexi-carbon Leg Flexi-carbon Leg Flexi-carbon Leg Biometal Leg > --- UTILITY ---------- Advanced Cryofiber Web Medium Storage Unit Enhanced Optical Array Advanced Signal Interpreter Advanced Targeting Computer Improved Armor Integrity Analyzer Experimental Armor Integrity Analyzer Advanced Weapon Cycler Experimental Propulsion Shielding Improved Light Armor Plating > --- WEAPON ----------- Variable Charge Gun KE Penetrator Enhanced Gauss Cannon Power Sword > --- INVENTORY -------- Light Antimatter Reactor Micro Antimatter Reactor Light Quantum Reactor Flexi-carbon Leg Experimental Coolant Injector Advanced Transmission Jammer Advanced System Shield Heavy Gauss Cannon Micro-nuke Launcher [Rating: 114] Favorites ----------- Power Hybrid Deuterium Engine Engine Hybrid Deuterium Engine Power Core Neutrino Core Reactor Light Antimatter Reactor Propulsion Improved Aluminum Leg Leg Improved Aluminum Leg Utility Medium Storage Unit Device Advanced Weapon Cycler Storage Medium Storage Unit Processor Advanced Targeting Computer Hackware Hacking Suite Protection Improved Light Armor Plating Weapon Shotgun Energy Gun Precision Beam Rifle Ballistic Gun Shotgun Ballistic Cannon Enhanced Gauss Cannon Launcher Micro-nuke Launcher Slashing Weapon Power Sword Piercing Weapon Plasma Lance Build | -11 -10 -9 -8 -7 -6 -5 -4 -4 -4 -3 ------- Run | Yrd Mat Mat Mat Fac Fac Fac Fac Upp War Pro Slots Evolved 12 | . . 2 2 2 2 2 2 . . . Power . | . . . . . . . . . . . Propulsion 2 | . . . 1 . 1 . . . . . Utility 8 | . . 2 . 2 . 2 2 . . . Weapon 2 | . . . 1 . 1 . . . . . Parts Attached 102 | 6 5 9 13 2 6 18 23 3 14 3 Power 13 | 1 1 . 1 . . 4 2 . 4 . Engine 7 | 1 1 . 1 . . 3 1 . . . Core 2 | . . . . . . 1 1 . . . Reactor 4 | . . . . . . . . . 4 . Propulsion 20 | 2 2 2 1 . 3 4 2 1 2 1 Treads . | . . . . . . . . . . . Leg 20 | 2 2 2 1 . 3 4 2 1 2 1 Wheel . | . . . . . . . . . . . Hover . | . . . . . . . . . . . Flight . | . . . . . . . . . . . Utility 35 | 1 . 4 3 2 3 6 13 . 3 . Device 13 | . . . 2 1 . 3 5 . 2 . Storage 3 | 1 . 1 . . . . 1 . . . Processor 8 | . . 1 . 1 2 . 3 . 1 . Hackware 2 | . . . . . 1 1 . . . . Protection 9 | . . 2 1 . . 2 4 . . . Artifact . | . . . . . . . . . . . Weapon 34 | 2 2 3 8 . . 4 6 2 5 2 Energy Gun 13 | 1 . 1 5 . . 2 2 . 2 . Energy Cannon . | . . . . . . . . . . . Ballistic Gun 9 | 1 1 2 3 . . 1 1 . . . Ballistic Cannon 2 | . . . . . . . 2 . . . Launcher 5 | . 1 . . . . 1 . 1 1 1 Special Weapon . | . . . . . . . . . . . Impact Weapon . | . . . . . . . . . . . Slashing Weapon 3 | . . . . . . . 1 1 1 . Piercing Weapon 2 | . . . . . . . . . 1 1 Special Melee Weapon . | . . . . . . . . . . . Unidentified Prototypes 10 | . . . 3 . . 2 1 . 4 . Corrupted Parts 3 | . . . . . . 3 . . . . System Corruption 28 | . . . . . . 28 . . . . Parts Lost 31 | . 1 1 1 . . 8 3 . 13 4 Power 5 | . 1 . . . . 1 . . 3 . Propulsion 7 | . . . . . . 2 . . 4 1 Utility 7 | . . . . . . 2 1 . 3 1 Weapon 12 | . . 1 1 . . 3 2 . 3 2 Highest Loss Streak 13 | . 1 1 1 . . 7 3 . 12 13 To Critical Strikes . | . . . . . . . . . . . Average Slot Usage (%) 84 | . 85 74 98 97 92 90 58 92 92 27 Engine 4 | . 14 11 9 7 6 4 1 . . . Core 1 | . . . . . . . 2 5 3 . Leg 18 | . 28 22 27 23 26 21 6 14 16 1 Device 9 | . . . 8 13 13 11 7 15 14 8 Storage 6 | . 14 11 9 7 6 5 5 5 4 . Processor 13 | . . 2 9 13 12 11 17 21 20 15 Hackware 1 | . . . . . 5 10 1 . . . Protection 6 | . . 6 9 7 . 2 6 10 9 . Energy Gun 4 | . 14 4 6 7 6 6 2 . . . Ballistic Gun 9 | . 13 17 19 15 13 10 . 5 4 . Ballistic Cannon 3 | . . . . . . . 5 10 9 . Naked Turns . | . . . . . . . . . . . Heaviest Build 68 | 12 12 22 32 31 31 34 57 68 68 16 Greatest Support 88 | 20 20 26 39 39 57 76 40 55 88 20 Greatest Overweight (x) 13 | . . . . . . 5 13 1 3 . Average Overweight (x) . | . . . . . . . 1 1 . . Largest Inventory Capacity 10 | 8 8 10 10 10 10 10 10 10 10 5 Average Capacity 9 | 6 8 8 10 10 10 10 10 10 9 5 Most Carried 10 | 5 5 9 10 10 10 10 10 9 10 4 Average Carried 7 | 1 2 6 8 8 8 6 6 8 8 2 Final Capacity 10 | 8 8 10 10 10 10 10 10 10 5 5 Final Carried 10 | 1 4 8 10 9 9 7 8 9 5 3 Class Distribution -------------------- 34% | Scavenger-Gunner 27% | Mutant 19% | Scavenger-Skirmisher 8% | Scavenger-Tank 5% | Tank Dominant Class ---------------- Mutant | -10/Materials Mutant | -9/Materials Scavenger-Tank | -8/Materials Scavenger-Skirmisher | -7/Factory Scavenger-Skirmisher | -6/Factory Scavenger-Skirmisher | -5/Factory Scavenger-Gunner | -4/Factory Scavenger-Gunner | -4/Upper Caves Scavenger-Gunner | -4/Warlord Mutant | -3/Proximity Caves Resources | -11 -10 -9 -8 -7 -6 -5 -4 -4 -4 -3 ----------- Run | Yrd Mat Mat Mat Fac Fac Fac Fac Upp War Pro Matter Collected 2503 | 202 235 309 334 43 74 263 435 183 400 25 Remotely . | . . . . . . . . . . . Salvage Created 2843 | . 487 530 300 69 . 365 372 395 105 220 Parts 140 | . 26 28 20 4 . 22 24 6 . 10 Haulers Intercepted 4 | . . 2 2 . . . . . . . Recyclers Shooed 16 | . . 2 1 . 1 6 6 . . . Parts Field Recycled . | . . . . . . . . . . . Retrieved Matter . | . . . . . . . . . . . Parts Self-Destructed 12 | . . . . . . . . 5 . 7 Prevented . | . . . . . . . . . . . Kills | -11 -10 -9 -8 -7 -6 -5 -4 -4 -4 -3 ------- Run | Yrd Mat Mat Mat Fac Fac Fac Fac Upp War Pro Combat Hostiles Destroyed 59 | . 16 8 4 1 . 6 8 4 8 4 Melee 2 | . . . . . . . . . . 2 Guns 32 | . 13 8 4 1 . 4 . 1 1 . Cannons 9 | . . . . . . . 8 . 1 . AOE 16 | . 3 . . . . 2 . 3 6 2 Classes Destroyed 18 | . 3 5 2 1 . 2 1 . 4 . Worker 2 | . . . . 1 . 1 . . . . Builder 1 | . . . . . . . 1 . . . Hauler 4 | . . 2 2 . . . . . . . Recycler 3 | . 1 1 . . . 1 . . . . Mechanic 1 | . . . 1 . . . . . . . Operator 1 | . . . 1 . . . . . . . Watcher 1 | . . 1 . . . . . . . . Swarmer 12 | . 9 . . . . 2 . . 1 . Cutter 1 | . . . . . . 1 . . . . Grunt 28 | . 7 5 3 1 . . 3 4 2 3 Brawler 1 | . . 1 . . . . . . . . Duelist 3 | . . 1 . . . . 1 . 1 . Sentry 3 | . . 1 1 . . . 1 . . . Specialist 1 | . . . . . . . . . 1 . Hunter 2 | . . . . . . . . . 1 1 Programmer 6 | . . . . . . 3 3 . . . Executioner 1 | . . . . . . . . . 1 . Mutant 1 | . . . . . . . . . 1 . Best Kill Streak 6 | . 5 5 3 1 . 4 3 4 6 3 Combat Bots Only 6 | . 5 4 3 1 . 2 2 4 6 3 Max Kills in Single Turn 2 | . 2 1 1 1 . 2 1 2 2 2 Gunslinging . | . . . . . . . . . . . Exploded 2 | . 2 . . . . 1 . 2 2 2 Melee 1 | . . . . . . . . . . 1 Uniques/NPCs Destroyed . | . . . . . . . . . . . Combat | -11 -10 -9 -8 -7 -6 -5 -4 -4 -4 -3 -------- Run | Yrd Mat Mat Mat Fac Fac Fac Fac Upp War Pro Hostile Shots Fired 553 | . 64 33 27 10 . 67 115 10 157 70 Missed 200 | . 22 11 7 6 . 15 33 3 65 38 Damage Taken 6901 | . 435 427 307 28 . 1415 1681 151 1951 506 Core 1675 | . 134 139 13 . . 227 319 17 619 207 Absorbed by Shields 25 | . . . . 25 . . . . . . Redirected to Shielding 117 | . . . . . . . 37 . 80 . Regen/Repaired (Parts) 125 | . . . . . . . . . 125 . Core Remaining (%) 83 | 100 46 65 97 100 100 77 . . . . Volleys Fired 191 | . 42 34 24 5 1 17 38 8 19 3 Largest 3 | . 2 2 3 3 3 3 3 3 3 1 Hottest 225 | . 80 65 102 107 107 203 193 151 225 49 Shots Fired 391 | . 84 68 72 15 3 49 53 13 31 3 Gun 315 | . 82 68 72 15 3 47 8 2 18 . Cannon 58 | . . . . . . . 45 7 6 . Launcher 18 | . 2 . . . . 2 . 4 7 3 Special . | . . . . . . . . . . . Kinetic 258 | . 40 61 54 10 2 25 45 9 12 . Thermal 108 | . 42 . 18 5 1 22 8 . 12 . Explosive 18 | . 2 . . . . 2 . 4 7 3 Electromagnetic 7 | . . 7 . . . . . . . . Robot Hit Streak 15 | . 10 11 11 10 3 15 13 5 2 2 Robot Miss Streak 5 | . 4 4 5 5 1 2 3 3 4 1 Penetration Max 1 | . . . . . . . . . 1 . Secondary Targets 5 | . 2 2 1 . . . . . . . Max Gunslinging Chain 1 | . 1 1 1 . . . . . . . Shots Hit Robots 267 | . 51 53 50 9 2 32 40 13 11 6 Core Hits 164 | . 25 29 20 5 1 21 22 14 20 7 Critical Kills . | . . . . . . . . . . . Critical Parts Destroyed 1 | . . 1 . . . . . . . . Critical Strikes 18 | . 2 1 1 2 . 2 8 1 1 . Burn 7 | . 2 . 1 2 . 2 . . . . Destroy 1 | . . 1 . . . . . . . . Blast 10 | . . . . . . . 8 1 1 . Melee Attacks 15 | . . . . . . . . 6 5 4 Impact . | . . . . . . . . . . . Slashing 11 | . . . . . . . . 6 5 . Piercing 4 | . . . . . . . . . . 4 Sneak Attacks . | . . . . . . . . . . . Combat Hostiles . | . . . . . . . . . . . Follow-up Attacks . | . . . . . . . . . . . Damage Inflicted 8673 | . 793 824 782 151 43 984 1369 1318 1806 603 Guns 3440 | . 632 792 764 151 32 722 104 48 195 . Cannons 1571 | . . . . . . . 1250 130 191 . Explosions 2907 | . 151 . . . . 208 . 738 1420 390 Melee 615 | . . . . . . . . 402 . 213 Ramming 140 | . 10 32 18 . 11 54 15 . . . Kinetic 3764 | . 273 718 590 87 32 395 1250 178 241 . Thermal 1173 | . 359 . 174 64 . 327 104 . 145 . Explosive 2907 | . 151 . . . . 208 . 738 1420 390 Electromagnetic 74 | . . 74 . . . . . . . . Impact . | . . . . . . . . . . . Slashing 402 | . . . . . . . . 402 . . Piercing 213 | . . . . . . . . . . 213 Highest Corruption 37 | . . . . . . 37 2 2 4 4 Average Corruption 3 | . . . . . . 8 1 2 2 4 Corruption Purged . | . . . . . . . . . . . Corruption Blocked . | . . . . . . . . . . . Effects 34 | . . . . . . 12 4 6 7 5 Message Errors 6 | . . . . . . 4 . . 1 1 Matter Fused 5 | . . . . . . 2 1 1 1 . Heat Flow Errors 10 | . . . . . . 3 1 2 3 1 Energy Discharges 3 | . . . . . . 1 . . 1 1 Data Loss (minor) 3 | . . . . . . . . 2 . 1 Data Loss (major) 3 | . . . . . . . 1 . 1 1 Misfires 1 | . . . . . . . . 1 . . Misdirections 1 | . . . . . . 1 . . . . Weapon Failures 2 | . . . . . . 1 1 . . . Overload Shots 6 | . . . . . . . . . 6 . Overflow Damage 201 | . 11 . . . . 6 55 54 75 . Projectiles 55 | . . . . . . . 55 . . . Explosions 99 | . 11 . . . . 6 . 7 75 . Melee 47 | . . . . . . . . 47 . . Knockbacks 21 | . . . . . . . 19 2 . . Impact . | . . . . . . . . . . . Kinetic 19 | . . . . . . . 17 2 . . Secondary 2 | . . . . . . . 2 . . . Self-Inflicted Damage 3 | . . . . . . . . . . 3 Shots 1 | . . . . . . . . . . 1 Rammed 1 | . . . . . . . 1 . . . Targets Rammed 33 | . 4 5 3 1 2 13 5 . . . Kicked 32 | . 4 5 3 1 2 13 4 . . . Crushed . | . . . . . . . . . . . Highest Temperature 290 | . 118 6 14 . 3 237 290 . 195 143 Average Temperature 50 | . 42 2 7 . 2 33 73 . 87 78 Received Heat Transfer 1194 | . 120 69 225 9 . 36 354 63 285 33 Effects 1 | . . . . . . . 1 . . . Interference 1 | . . . . . . . 1 . . . Siege Activations . | . . . . . . . . . . . Robots Corrupted . | . . . . . . . . . . . Combat Hostiles . | . . . . . . . . . . . Parts Fried . | . . . . . . . . . . . Impact Corruptions 1 | . . . . . . . 1 . . . Robots Melted . | . . . . . . . . . . . Combat Hostiles . | . . . . . . . . . . . Parts Melted 4 | . 1 . 2 1 . . . . . . Heat Transferred 3171 | . 1221 . 518 296 . 740 185 . 211 . Parts Sabotaged . | . . . . . . . . . . . Parts Stolen . | . . . . . . . . . . . Parts Stripped . | . . . . . . . . . . . Power Chain Reactions . | . . . . . . . . . . . Alert | -11 -10 -9 -8 -7 -6 -5 -4 -4 -4 -3 ------- Run | Yrd Mat Mat Mat Fac Fac Fac Fac Upp War Pro Peak Influence 421 | . 421 324 111 35 19 129 181 . . . Initial 122 | . . 122 70 . . 9 4 . . . Average 72 | . 232 165 53 14 6 47 34 . . . Maximum Alert Level 2 | . 2 1 . . . . . . . . Low Security (%) 90 | 100 34 83 100 100 100 100 100 . . . Level 1 8 | . 59 16 . . . . . . . . Level 2 . | . 6 . . . . . . . . . Level 3 . | . . . . . . . . . . . Level 4 . | . . . . . . . . . . . Level 5 . | . . . . . . . . . . . High Security . | . . . . . . . . . . . Max Security . | . . . . . . . . . . . Squads Dispatched 14 | . 2 1 1 1 . 7 2 . . . Investigation 2 | . 1 1 . . . . . . . . Extermination 4 | . . . . 1 . 1 2 . . . Reinforcement 5 | . 1 . 1 . . 3 . . . . Assault . | . . . . . . . . . . . Garrison 3 | . . . . . . 3 . . . . Intercept . | . . . . . . . . . . . Searches Triggered . | . . . . . . . . . . . Construction Impeded 1 | . . . . . . 1 . . . . Haulers Reinforced . | . . . . . . . . . . . Active Scanning Responses . | . . . . . . . . . . . Cargo Convoy Interrupts . | . . . . . . . . . . . Stealth | -11 -10 -9 -8 -7 -6 -5 -4 -4 -4 -3 --------- Run | Yrd Mat Mat Mat Fac Fac Fac Fac Upp War Pro Distress Signals 6 | . 1 2 . . . 2 1 . . . Communications Jammed 3 | . . . . . . . 3 . . . Distress Signals 3 | . . . . . . . 3 . . . Times Spotted 169 | . 23 11 7 11 6 20 16 5 60 10 Peak Tracking Total 22 | . 5 5 4 3 5 7 5 4 22 4 Tactical Retreats 9 | . 2 . . . 1 1 1 . 2 2 Traps | -11 -10 -9 -8 -7 -6 -5 -4 -4 -4 -3 ------- Run | Yrd Mat Mat Mat Fac Fac Fac Fac Upp War Pro Traps Triggered 4 | . 2 1 . . . 1 . . . . Indirectly . | . . . . . . . . . . . Trap Hack Attempts . | . . . . . . . . . . . Triggered . | . . . . . . . . . . . Disarmed . | . . . . . . . . . . . Reprogrammed . | . . . . . . . . . . . Reused . | . . . . . . . . . . . Traps Extracted . | . . . . . . . . . . . Installed . | . . . . . . . . . . . Triggered 23 | . . . . . . . . 2 21 . Machines | -11 -10 -9 -8 -7 -6 -5 -4 -4 -4 -3 ---------- Run | Yrd Mat Mat Mat Fac Fac Fac Fac Upp War Pro Machines Disabled 2 | . . . . . . . 1 . 1 . Max in Single Turn 1 | . . . . . . . 1 . 1 . Machines Repaired . | . . . . . . . . . . . Machines Dismantled . | . . . . . . . . . . . Machines Sabotaged . | . . . . . . . . . . . Overloaded Fab Kills . | . . . . . . . . . . . Hacking | -11 -10 -9 -8 -7 -6 -5 -4 -4 -4 -3 --------- Run | Yrd Mat Mat Mat Fac Fac Fac Fac Upp War Pro Machines Accessed 19 | . 3 2 3 3 1 1 3 . 3 . Terminals 12 | . 3 2 3 1 1 1 1 . . . Fabricators 3 | . . . . 1 . . 2 . . . Repair Stations . | . . . . . . . . . . . Recycling Units . | . . . . . . . . . . . Scanalyzers . | . . . . . . . . . . . Garrison Access 1 | . . . . 1 . . . . . . Total Hacks 35 | . 4 3 7 7 3 1 6 . 4 . Successful 17 | . 3 1 5 1 1 1 1 . 4 . Failed 18 | . 1 2 2 6 2 . 5 . . . Catastrophic 2 | . . . . 1 . . 1 . . . Database Lockouts . | . . . . . . . . . . . Manual 10 | . 2 1 3 . . . 2 . 2 . Terminals 23 | . 4 3 7 2 3 1 3 . . . Fabricators 6 | . . . . 3 . . 3 . . . Repair Stations . | . . . . . . . . . . . Recycling Units . | . . . . . . . . . . . Scanalyzers . | . . . . . . . . . . . Garrison Access 2 | . . . . 2 . . . . . . Terminal Hacks 16 | . 2 1 5 1 1 1 1 . 4 . Record 2 | . . . . . . . . . 2 . Prototype ID Bank 3 | . 1 1 . . 1 . . . . . Open Door 2 | . . . . . . . . . 2 . Open DSF 2 | . . . . 1 . 1 . . . . Branch Access Points 2 | . 1 . 1 . . . . . . . Unreport Threat 2 | . . . 2 . . . . . . . Locate Traps 2 | . . . 2 . . . . . . . Zone Layout 1 | . . . . . . . 1 . . . Fabricator Hacks . | . . . . . . . . . . . Repair Station Hacks . | . . . . . . . . . . . Recycling Unit Hacks . | . . . . . . . . . . . Scanalyzer . | . . . . . . . . . . . Garrison Access Hacks . | . . . . . . . . . . . Unauthorized Hacks 1 | . 1 . . . . . . . . . Terminals 1 | . 1 . . . . . . . . . Operators 1 | . 1 . . . . . . . . . Fabricators . | . . . . . . . . . . . Repair Stations . | . . . . . . . . . . . Recycling Units . | . . . . . . . . . . . Scanalyzers . | . . . . . . . . . . . Garrison Access . | . . . . . . . . . . . Data Cores Recovered 1 | . . . 1 . . . . . . . Used . | . . . . . . . . . . . Hacking Detections 12 | . 1 2 2 3 1 . 3 . . . Full Trace Events . | . . . . . . . . . . . Feedback Events . | . . . . . . . . . . . Feedback Blocked . | . . . . . . . . . . . Robot Schematics Acquired . | . . . . . . . . . . . Robots Built . | . . . . . . . . . . . Authchips . | . . . . . . . . . . . Time . | . . . . . . . . . . . Total Robot Build Rating . | . . . . . . . . . . . Part Schematics Acquired . | . . . . . . . . . . . Parts Built . | . . . . . . . . . . . Authchips . | . . . . . . . . . . . Time . | . . . . . . . . . . . Total Part Build Rating . | . . . . . . . . . . . Parts Repaired . | . . . . . . . . . . . Time . | . . . . . . . . . . . Parts Recycled . | . . . . . . . . . . . Recycled Matter . | . . . . . . . . . . . Retrieved Matter . | . . . . . . . . . . . Retrieved Components . | . . . . . . . . . . . Parts Scanalyzed . | . . . . . . . . . . . Part Schematics Acquired . | . . . . . . . . . . . Parts Damaged . | . . . . . . . . . . . Bothacking | -11 -10 -9 -8 -7 -6 -5 -4 -4 -4 -3 ------------ Run | Yrd Mat Mat Mat Fac Fac Fac Fac Upp War Pro Used RIF Installer . | . . . . . . . . . . . Robots Hacked . | . . . . . . . . . . . Non-combat . | . . . . . . . . . . . Combat . | . . . . . . . . . . . Robot Hacks Applied . | . . . . . . . . . . . Relay Couplers Released . | . . . . . . . . . . . Fabnet Peak Effective % . | . . . . . . . . . . . Robots Rewired 1 | . . . . 1 . . . . . . Allies Hacked . | . . . . . . . . . . . Hacks Repelled . | . . . . . . . . . . . Allies | -11 -10 -9 -8 -7 -6 -5 -4 -4 -4 -3 -------- Run | Yrd Mat Mat Mat Fac Fac Fac Fac Upp War Pro Total Allies 1 | . . . . 1 . . . . . . Largest Group 1 | . . . . 1 . . . . . . Highest-Rated Group 40 | . . . . 40 . . . . . . Highest-Rated Ally 40 | . . . . 40 . . . . . . Total Orders . | . . . . . . . . . . . Ally Attacks . | . . . . . . . . . . . Total Damage . | . . . . . . . . . . . Kills . | . . . . . . . . . . . Allies Corrupted . | . . . . . . . . . . . Allies Melted 1 | . . . . . . . . . 1 . Intel | -11 -10 -9 -8 -7 -6 -5 -4 -4 -4 -3 ------- Run | Yrd Mat Mat Mat Fac Fac Fac Fac Upp War Pro Robot Analysis Total . | . . . . . . . . . . . Derelict Logs Recovered . | . . . . . . . . . . . Drone Launches . | . . . . . . . . . . . Drone Recoveries . | . . . . . . . . . . . Exploration | -11 -10 -9 -8 -7 -6 -5 -4 -4 -4 -3 ------------- Run | Yrd Mat Mat Mat Fac Fac Fac Fac Upp War Pro Turns Passed 7125 | 46 532 648 866 938 318 502 1004 470 1578 223 Spaces Moved 4362 | 38 315 408 580 570 229 293 448 229 911 341 Core 444 | 17 . . . . . 1 116 . 16 294 Treads . | . . . . . . . . . . . Legs 3918 | 21 315 408 580 570 229 292 332 229 895 47 Wheels . | . . . . . . . . . . . Hover . | . . . . . . . . . . . Flight . | . . . . . . . . . . . Fastest Speed 50 | 50 120 120 120 120 120 120 120 190 50 50 Average Speed 134 | 88 120 120 120 120 120 120 190 190 162 59 Slowest Speed 700 | 120 120 120 120 120 120 300 700 190 200 120 Overloaded Moves . | . . . . . . . . . . . Propulsion Burnouts . | . . . . . . . . . . . Robots Hopped . | . . . . . . . . . . . Cave-ins Triggered . | . . . . . . . . . . . Exploration Rate (%) 33 | 4 68 34 48 15 7 7 12 35 95 41 Regions Visited 10 Branch Regions 3 Pre-discovered Areas . | . . . . . . . . . . . Known Exits Taken 8 | . . 1 1 1 1 1 1 1 1 . Unknown Exits Taken 2 | 1 1 . . . . . . . . . Scrap Searched . | . . . . . . . . . . . Spaces Dug . | . . . . . . . . . . . Terrain Destroyed 206 | . 21 . . . . . 14 53 43 75 Melee . | . . . . . . . . . . . Projectile 24 | . . . . . . . 14 4 6 . AOE 182 | . 21 . . . . . . 49 37 75 Terrain Rammed . | . . . . . . . . . . . Walls Destroyed . | . . . . . . . . . . . Machines Disabled . | . . . . . . . . . . . Actions | -11 -10 -9 -8 -7 -6 -5 -4 -4 -4 -3 --------- Run | Yrd Mat Mat Mat Fac Fac Fac Fac Upp War Pro Total 5269 | 50 383 500 698 812 271 406 556 250 991 352 Wait 399 | . 11 19 53 230 21 40 15 1 9 . Move 4352 | 37 314 407 579 569 228 292 447 228 910 341 Hop . | . . . . . . . . . . . Pick Up 101 | 7 5 17 16 1 7 12 18 3 15 . Fast Attach . | . . . . . . . . . . . Attach 73 | 6 2 5 7 2 4 10 22 3 9 3 Detach 15 | . 1 . . . . 3 6 1 3 1 Swap 29 | . 3 4 6 . 2 8 1 . 5 . Drop 55 | . 1 9 10 . 6 9 4 . 16 . Fire 191 | . 42 34 24 5 1 17 38 8 19 3 Melee 15 | . . . . . . . . 6 5 4 Ram 1 | . . . . . . . 1 . . . Kick 32 | . 4 5 3 1 2 13 4 . . . Crush . | . . . . . . . . . . . Escape Stasis 2 | . . . . . . 2 . . . . Rewire 4 | . . . . 4 . . . . . . Trap . | . . . . . . . . . . . Miscellaneous . | . . . . . . . . . . . Route ------- -11/Scrapyard -10/Materials (discovered 4 exits: *Mat x3 / *Min) -9/Materials (discovered 3 exits: *Mat / *Min x2) -8/Materials (discovered 2 exits: *Fac x2) -7/Factory (discovered 2 exits: *Fac / *Sto) -6/Factory -5/Factory (discovered 2 exits: *Fac / *Upp) -4/Factory (discovered 2 exits: *Res / *Upp) -4/Upper Caves -4/Warlord -3/Proximity Caves History --------- Turn | Location | Event 6 | -11/Scrapyard | Discovered new exit (range 14) 47 | -11/Scrapyard | Entered Materials 98 | -10/Materials | Discovered new exit (range 5) 212 | -10/Materials | Discovered new exit (range 16) 303 | -10/Materials | Build established: Mutant 338 | -10/Materials | Discovered new exit (range 7) 363 | -10/Materials | Identified exit to Mines 493 | -10/Materials | Discovered new exit (range 3) 561 | -10/Materials | Core integrity fell below 50% 579 | -10/Materials | Entered another Materials area 579 | -9/Materials | Evolved 2 slots: Utility x2 921 | -9/Materials | Discovered new exit (range 16) 1056 | -9/Materials | Discovered new exit (range 12) 1114 | -9/Materials | Identified exit to Mines 1189 | -9/Materials | Discovered new exit (range 16) 1226 | -9/Materials | Identified exit to Materials 1227 | -9/Materials | Entered another Materials area 1227 | -8/Materials | Evolved 2 slots: Propulsion x1, Weapon x1 1577 | -8/Materials | Discovered new exit (range 4) 1581 | -8/Materials | Build established: Tank 1581 | -8/Materials | Identified exit to Factory 1814 | -8/Materials | Met 7R-MNS 1856 | -8/Materials | Discovered exit to Factory (range 15) 1948 | -8/Materials | Build established: Scavenger-Tank 2093 | -8/Materials | Entered Factory 2093 | -7/Factory | Evolved 2 slots: Utility x2 2094 | -7/Factory | Caught up to 7R-MNS 2123 | -7/Factory | Discovered new exit (range 15) 2140 | -7/Factory | Identified exit to Factory 2535 | -7/Factory | Build established: Scavenger-Skirmisher 2542 | -7/Factory | Discovered new exit (range 10) 2560 | -7/Factory | Identified exit to Storage 3031 | -7/Factory | Entered another Factory area 3031 | -6/Factory | Evolved 2 slots: Propulsion x1, Weapon x1 3032 | -6/Factory | Caught up to 7R-MNS 3343 | -6/Factory | Discovered new exit (range 6) 3348 | -6/Factory | Identified exit to Factory 3349 | -6/Factory | Entered another Factory area 3349 | -5/Factory | Evolved 2 slots: Utility x2 3350 | -5/Factory | Caught up to 7R-MNS 3358 | -5/Factory | Discovered new exit (range 9) 3360 | -5/Factory | Identified exit to DSF 3368 | -5/Factory | Identified exit to Upper Caves 3537 | -5/Factory | Garrison activated, responded to threat 3806 | -5/Factory | 7R-MNS lamented failing the tripod run 3812 | -5/Factory | System corruption reached 10% 3817 | -5/Factory | Found Prototype Protection 3827 | -5/Factory | Discovered new exit (range 6) 3834 | -5/Factory | System corruption reached 30% 3849 | -5/Factory | Identified exit to Factory 3851 | -5/Factory | Entered another Factory area 3851 | -4/Factory | Evolved 2 slots: Utility x2 3857 | -4/Factory | Identified Centrium Heavy Armor Plating 3881 | -4/Factory | Lost 7 parts (1p1n2u3w) 4116 | -4/Factory | Build established: Mutant 4133 | -4/Factory | Lost 3 parts (1u2w) 4575 | -4/Factory | Discovered new exit (range 22) 4613 | -4/Factory | Identified exit to Research 4697 | -4/Factory | Build established: Scavenger-Gunner 4816 | -4/Factory | Discovered new exit (range 21) 4854 | -4/Factory | Identified exit to Upper Caves 4855 | -4/Factory | Entered Upper Caves 5293 | -4/Upper Caves | A Derelict revealed a hidden shortcut to "reach the base" 5293 | -4/Upper Caves | Identified exit to Warlord 5311 | -4/Upper Caves | Attracted the attention of an 0b10 checkpoint 5325 | -4/Upper Caves | Entered Warlord 5398 | -4/Warlord | System corruption cleaned by Quarantine Array 5631 | -4/Warlord | Opened side exit 5704 | -4/Warlord | Discovered new exit (range 14) 5724 | -4/Warlord | Identified exit to Proximity Caves 5943 | -4/Warlord | Met Warlord 5968 | -4/Warlord | Warlord's base attacked by MAIN.C 6318 | -4/Warlord | Warlord forces counterattacked 6318 | -4/Warlord | Found Prototype Energy Gun 6319 | -4/Warlord | Identified Vortex Shotgun 6412 | -4/Warlord | Spotted B-90 Cyclops 6413 | -4/Warlord | Spotted Striker 6417 | -4/Warlord | Spotted Striker 6450 | -4/Warlord | Spotted Executioner 6501 | -4/Warlord | Lost 3 allies 6586 | -4/Warlord | Lost 4 allies 6619 | -4/Warlord | Found Prototype Processor 6620 | -4/Warlord | Identified Exp. Armor Integrity Analyzer 6629 | -4/Warlord | Found Prototype Reactor 6643 | -4/Warlord | Warlord base infiltrated, sounded retreat 6644 | -4/Warlord | Enhanced Grunt warped into view 6644 | -4/Warlord | Enhanced Demolisher warped into view 6669 | -4/Warlord | Spotted Executioner 6675 | -4/Warlord | Spotted Striker 6677 | -4/Warlord | Spotted Executioner 6707 | -4/Warlord | Spotted Executioner 6722 | -4/Warlord | Destroyed Executioner 6742 | -4/Warlord | Lost 9 allies 6756 | -4/Warlord | Spotted Executioner 6780 | -4/Warlord | Lost 3 allies 6868 | -4/Warlord | Spotted Executioner 6873 | -4/Warlord | Spotted Executioner 6892 | -4/Warlord | Core integrity fell below 50% 6899 | -4/Warlord | Core integrity fell below 20% 6903 | -4/Warlord | Entered Proximity Caves 6946 | -3/Proximity Caves | Lost 13 parts (3p4n2u4w) 7011 | -3/Proximity Caves | Lost 3 parts (1n1u1w) 7126 | -3/Proximity Caves | Destroyed by H-77 Assassin with Coil Gun Last Messages --------------- Penetrated by Slug. Slug penetrates Wall. Flexi-carbon Leg destroyed. Slug penetrates Wall. Adv. Cryofiber Web destroyed. H-77 Assassin destroyed. Penetrated by Slug. Slug penetrates Wall. Hpw. Shotgun fries itself beyond repair. Penetrated by Slug. Plasma Lance destroyed. System corrupted: Heat flow error (+186). Imp. Targeting Computer fries itself beyond repair. Penetrated by Slug. System corrupted: Substantial component data lost. Slug penetrates Wall. System corrupted: Energy discharge (-20). Penetrated by Slug. Map ----- +----------------------------------------------------+ | ????????????## #??????????????????? | | ?????????????# ##??????????????????? | | ???????####### ####???????????????????? | | ???????# ### #??????????????????????? | | ???????# #?### #??????????????????????? | | ????????# ##### ##??????? ??????????????? | | ????????## ###??#??? #????????????? | | ?????????## #### ## #???????????? | | ??????????# ## #??????????? | | ??????????# ####### #??????????????? | | ?????????# ######### #??????????????? | | ?????????##### ???????????? | | ?????????????# ???????????? | | ?????????????# ##### ## ????????????? | | ?????????????# #???## ##?? #????????????? | | ?????????????# #????## ##?? #????????????? | | ?????????????# #?????# #??? ##???????????? | | ?????????????# #?????? ##? ##??????????? | | ??????????#### #?????? ## ##?????????? | | ?????????## ######?# ##????????? | | ?????????# ## ### #????????? | | ?????????# ##???????? | | ?????????# ## ??????? | | ?????????## ### ### ??????? | | ??????????## ### h #??????????? | | ???????????# ##?## @ #### ##??????????? | | ???????????## #???## #??????##???????????? | | ????????????# ????### ##??????????????????? | | ????????????# ??????# #??????????????????? | | ????????????# ###?????# #??????????????????? | | ????????????######???##### ##??????????????????? | | ????????????????????## ##???????????????????? | | ???????????###?????## #????????????????????? | | ??####?????# ##???## #????????????????????? | | ?## ##????# #???# ##????????????????????? | | ?# ##???# ##??# #?????????????????????? | | #?# #??## #### ##?????????????????????? | | ### #??# ## #??????????????????????? | | #??# #### ### #??????????????????????? | | # #### ###??# #?### ?????????????????????? | | ### ## #????# #??? #???????????????????? | | ## #????# #??? #??????????????????? | | " #????# #??? #??????????????????? | | ## ##????# #??? #??????????????????? | | " " ######????? ??? ??????????????????? | | """" ##????????? ?? #?????????????????? | | """"" ##???????? ?? ??????????????????????? | | ##??????? ????????????????????????? | | #?????? ????????????????????????? | | #??????? ## ???????????????????????? | +----------------------------------------------------+ Best States ------------- Heat Dissipation 59 Coolant Potential 120 Energy Generation 21 Energy Capacity 800 Matter Stores 300 Matter Capacity 300 Sight Range 22 Robot Scan Range 15 Terrain Scan Density 10 Jamming Range 16 Base Temperature (-) 200 Armor Coverage 750 Propulsion Shielding 90 Weapon Cycling 25 Evasion (%) 55 Targeting Accuracy 16 Armor Integrity Analysis 50 Matter Filtering 30 Offensive Hacking 10 Defensive Hacking 10 Item Schematics ----------------- None Robot Schematics ------------------ None Fabricated ------------ Nothing Alien Tech Used ----------------- None Achievements -------------- A Powerful Ally? Charge!!! Challenges ------------ None Game ------ Seed TargetMultinovaLeg Manual? 0 Play Time 01:08:45 Cumulative 37.8 hours Start 2024.04.29 @ 15:32:17 End 2024.04.29 @ 16:45:40 Sessions 1 Manual Loads 0 Difficulty Rogue Special Mode None Game No. 38 Rogue 37 Adventurer 1 Explorer 0 Win Type - Total 1 Types 1/0/0/0/0/0/0/0/0 Lore% 34 Gallery% 42 Achievement% 35 Wizard Run 0 Options --------- Layout 1 ASCII 0 Keyboard 0 Movement Numpad Keybinds 0 Fullscreen 1 Font 24/Smallcaps Map View 50x35 Zoom Use 0% Tactical HUD 0 Map Filters NONE Filters NONE Steam 1 RUN: c761891f-b117-47ab-bad8-811d08eec715